fUST/lending_fUST_20250913
["ID","MTS","AMOUNT","RATE_DAILY","PERIOD"]
[385261298,1757710244626,-157.0,0.00024658,2]
[385261299,1757710244635,-609.0,0.00024658,2]
[385261300,1757710244647,-196.01094553,0.00024673,2]
[385261301,1757710244656,-500.0,0.00024673,2]
[385261302,1757710244666,-158.10884462,0.00024673,2]
[385261303,1757710244675,-500.0,0.00024673,2]
[385261304,1757710244687,-500.0,0.00024673,2]
[385261305,1757710244697,-500.0,0.00024673,2]
[385261306,1757710244706,-571.30130751,0.00024673,2]
[385261307,1757710244716,-500.0,0.00024673,2]
[385261308,1757710244725,-500.0,0.00024673,2]
[385261309,1757710244827,-500.0,0.00024673,2]
[385261310,1757710244836,-500.0,0.00024673,2]
[385261311,1757710244845,-500.0,0.00024673,2]
[385261312,1757710244855,-500.0,0.00024673,2]
[385261313,1757710244865,-500.0,0.00024673,2]
[385261314,1757710244876,-151.0,0.000247,7]
[385261315,1757710244885,-151.0,0.000247,7]
[385261316,1757710244895,-329.187627,0.000247,10]
[385261317,1757710244904,-73040.12,0.000247,7]
[385261318,1757710244913,-151.0,0.000247,7]
[385261319,1757710244923,-151.0,0.000247,7]
[385261320,1757710244932,-151.0,0.000247,7]
[385261321,1757710244942,-151.0,0.000247,7]
[385261322,1757710244951,-398.0,0.0002479,11]
[385261323,1757710244960,-151.0,0.0002479,7]
[385261324,1757710244970,-295.942175,0.0002479,7]
[385261325,1757710244979,-295.942175,0.0002479,7]
[385261326,1757710244988,-295.942175,0.0002479,7]
[385261327,1757710244997,-295.942175,0.0002479,7]
[385261328,1757710245006,-176.635869,0.0002479,7]
[385261329,1757710245015,-176.635869,0.0002479,7]
[385261330,1757710245025,-176.635869,0.0002479,7]
[385261331,1757710245034,-176.635869,0.0002479,7]
[385261332,1757710245043,-151.0,0.00024799,7]
[385261333,1757710245052,-151.0,0.000248,7]
[385261334,1757710245062,-1000.0,0.000248,5]
[385261335,1757710245071,-151.0,0.000248,7]
[385261336,1757710245080,-151.0,0.000248,7]
[385261337,1757710245090,-151.0,0.000248,7]
[385261338,1757710245099,-151.0,0.000248,7]
[385261339,1757710245108,-151.0,0.000248,7]
[385261340,1757710245117,-151.0,0.000248,7]
[385261341,1757710245126,-151.0,0.000248,7]
[385261342,1757710245135,-151.0,0.000248,7]
[385261343,1757710245145,-151.0,0.000248,7]
[385261344,1757710245154,-151.0,0.000248,7]
[385261345,1757710245163,-151.0,0.000248,7]
[385261346,1757710245173,-151.0,0.000248,7]
[385261347,1757710245182,-151.0,0.000248,7]
[385261348,1757710245191,-151.0,0.000248,7]
[385261349,1757710245201,-151.0,0.000248,7]
[385261350,1757710245210,-222.655368,0.000248,7]
[385261351,1757710245220,-151.0,0.000248,7]
[385261352,1757710245230,-151.0,0.000248,7]
[385261353,1757710245239,-151.0,0.000248,7]
[385261354,1757710245248,-151.0,0.000248,7]
[385261355,1757710245258,-151.0,0.000248,7]
[385261356,1757710245268,-295.942175,0.000248,7]
[385261357,1757710245277,-295.942175,0.000248,7]
[385261358,1757710245287,-295.942175,0.000248,7]
[385261359,1757710245296,-295.942167,0.000248,7]
[385261360,1757710245305,-176.635869,0.000248,7]
[385261361,1757710245315,-176.635869,0.000248,7]
[385261362,1757710245325,-176.635869,0.000248,7]
[385261363,1757710245335,-176.635869,0.000248,7]
[385261364,1757710245345,-157.670519,0.00024818,2]
[385261365,1757710245358,-500.0,0.00024873,2]
[385261366,1757710245367,-500.0,0.00024873,2]
[385261367,1757710245376,-500.0,0.00024873,2]
[385261369,1757710245386,-500.0,0.00024873,2]
[385261370,1757710245395,-213.94153827,0.00024873,2]
[385261371,1757710245404,-500.0,0.00024873,2]
[385261372,1757710245413,-151.0,0.0002489,7]
[385261374,1757710245423,-151.0,0.0002489,7]
[385261376,1757710245432,-151.0,0.0002489,7]
[385261378,1757710245441,-151.0,0.0002489,7]
[385261380,1757710245451,-290.100316,0.0002489,7]
[385261383,1757710245461,-151.0,0.0002489,7]
[385261385,1757710245470,-214.747912,0.0002489,7]
[385261386,1757710245479,-151.0,0.0002489,7]
[385261387,1757710245488,-151.0,0.0002489,7]
[385261388,1757710245497,-4198.23129783,0.00024896,2]
[385261390,1757710245507,-6050.27,0.000249,7]
[385261393,1757710245516,-151.0,0.000249,7]
[385261395,1757710245525,-151.0,0.000249,10]
[385261397,1757710245534,-151.0,0.000249,7]
[385261399,1757710245543,-151.0,0.000249,7]
[385261401,1757710245553,-151.0,0.000249,7]
[385261403,1757710245562,-151.0,0.000249,7]
[385261405,1757710245571,-151.0,0.000249,7]
[385261407,1757710245581,-151.0,0.000249,7]
[385261409,1757710245590,-151.0,0.000249,7]
[385261410,1757710245600,-847.0429734,0.000249,7]
[385261412,1757710245609,-662273.616055,0.000249,2]
[385261414,1757710245619,-157.0,0.00024932,2]
[385261416,1757710245628,-157.0,0.00024932,2]
[385261419,1757710245638,-609.0,0.00024932,2]
[385261421,1757710245649,-1152.464775,0.0002498,5]
[385261422,1757710245662,-1000.0,0.00025,5]
[385261424,1757710245671,-864.0,0.00025049,20]
[385261426,1757710245680,-151.0,0.00025114,5]
[385261428,1757710245691,-363.0,0.00025128,2]
[385261430,1757710245701,-157.0,0.00025206,2]
[385261432,1757710245711,-609.0,0.00025206,2]
[385261434,1757710245721,-1000.0,0.00025221,2]
[385261436,1757710245730,-797.37806705,0.00025287,2]
[385261438,1757710245741,-318.38766947,0.00025359,2]
[385261440,1757710245750,-500.0,0.00025421,2]
[385261441,1757710245759,-1000.0,0.00025421,2]
[385261442,1757710245768,-1000.0,0.00025421,2]
[385261443,1757710245778,-889.75179488,0.00025421,2]
[385261444,1757710245787,-250.0,0.00025421,2]
[385261445,1757710245797,-157.0,0.0002548,2]
[385261446,1757710245807,-609.0,0.0002548,2]
[385261447,1757710245817,-500.0,0.00025516,9]
[385261448,1757710245826,-2653.93,0.000256,7]
[385261449,1757710245836,-500.0,0.00025604,9]
[385261450,1757710245846,-225.0,0.00025754,2]
[385261451,1757710245855,-609.0,0.00025754,2]
[385261452,1757710245865,-1500.0,0.00025768,2]
[385261453,1757710245875,-73040.12,0.000258,7]
[385261454,1757710245884,-6050.27,0.000259,7]
[385261455,1757710245894,-1500.0,0.00025968,2]
[385261456,1757710245903,-613.24142378,0.00025968,2]
[385261457,1757710245912,-350.0,0.00025968,2]
[385261458,1757710245922,-619.66846027,0.00025973,2]
[385261459,1757710245931,-500.0,0.00025973,2]
[385261460,1757710245940,-500.0,0.00025973,2]
[385261461,1757710245951,-228.94211228,0.00025973,2]
[385261462,1757710245960,-500.0,0.00025973,2]
[385261463,1757710245970,-160.10793149,0.00025973,2]
[385261464,1757710245979,-500.0,0.00025973,2]
[385261465,1757710245989,-500.0,0.00025973,2]
[385261466,1757710245998,-797.37806705,0.00025973,2]
[385261467,1757710246009,-157.670519,0.00025993,4]
[385261468,1757710246018,-1569.13,0.00026,7]
[385261469,1757710246027,-1000.0,0.00026027,30]
[385261470,1757710246037,-2051.0,0.00026027,30]
[385261471,1757710246048,-157.670519,0.00026027,4]
[385261472,1757710246057,-863.43,0.00026027,4]
[385261473,1757710246067,-609.0,0.00026028,2]
[385261474,1757710246077,-151.0,0.00026076,6]
[385261475,1757710246088,-4198.23129783,0.00026145,4]
[385261476,1757710246097,-16287.77600117,0.00026146,2]
[385261477,1757710246107,-191.7316302,0.0002616,2]
[385261478,1757710246116,-609.0,0.00026302,2]
[385261479,1757710246125,-1508.04581078,0.00026316,2]
[385261480,1757710246135,-151.41,0.00026328,7]
[385261481,1757710246145,-151.41,0.00026356,7]
[385261482,1757710246155,-155.89629348,0.00026356,7]
[385261483,1757710246164,-151.42,0.00026386,7]
[385261484,1757710246174,-151.41,0.00026428,7]
[385261485,1757710246183,-500.0,0.0002644,2]
[385261486,1757710246192,-500.0,0.0002644,2]
[385261487,1757710246202,-151.45,0.00026456,7]
[385261488,1757710246212,-2072.76,0.00026463,2]
[385261489,1757710246221,-151.42,0.00026486,7]
[385261490,1757710246231,-5000.0,0.0002649,3]
[385261491,1757710246239,-2000.0,0.000265,2]
[385261495,1757710246326,-804.0,0.000265,2]
[385261496,1757710246336,-847.0429734,0.000265,3]
[385261497,1757710246345,-233.13074058,0.000265,3]
[385261498,1757710246354,-2000.0,0.00026516,2]
[385261499,1757710246363,-450.0,0.00026516,2]
[385261500,1757710246373,-1000.0,0.00026521,2]
[385261501,1757710246382,-1000.0,0.00026521,2]
[385261502,1757710246391,-403.79659271,0.00026521,2]
[385261503,1757710246400,-1000.0,0.00026521,2]
[385261504,1757710246410,-151.43,0.00026528,7]
[385261505,1757710246420,-200.0,0.0002654,14]
[385261506,1757710246429,-609.0,0.00026576,2]
[385261507,1757710246439,-151.42,0.00026586,7]
[385261508,1757710246449,-151.31580864,0.00026593,2]
[385261509,1757710246458,-797.37806705,0.0002666,2]
[385261510,1757710246468,-1100.0,0.00026674,2]
[385261511,1757710246477,-500.0,0.00026676,2]
[385261512,1757710246486,-257.891347,0.00026676,2]
[385261513,1757710246495,-500.0,0.00026679,2]
[385261514,1757710246504,-800.0,0.0002668,2]
[385261515,1757710246514,-1100.0,0.00026682,2]
[385261516,1757710246523,-151.42,0.00026686,7]
[385261517,1757710246532,-1100.0,0.00026696,2]
[385261518,1757710246542,-800.0,0.00026699,2]
[385261519,1757710246551,-2653.93,0.000267,7]
[385261520,1757710246560,-500.0,0.00026722,2]
[385261521,1757710246570,-500.0,0.00026724,2]
[385261522,1757710246580,-500.0,0.00026746,2]
[385261523,1757710246590,-157.670519,0.00026759,2]
[385261524,1757710246600,-151.42,0.00026786,7]
[385261525,1757710246609,-609.0,0.0002685,2]
[385261526,1757710246619,-500.0,0.00026853,2]
[385261527,1757710246628,-500.0,0.0002686,2]
[385261528,1757710246639,-1100.0,0.00026868,2]
[385261529,1757710246650,-800.0,0.00026877,2]
[385261530,1757710246659,-891.50458413,0.0002688,2]
[385261531,1757710246669,-1100.0,0.00026882,2]
[385261532,1757710246679,-500.0,0.00026883,2]
[385261533,1757710246689,-151.42,0.00026886,7]
[385261534,1757710246700,-10000.0,0.000269,30]
[385261535,1757710246709,-720.94884732,0.000269,30]
[385261536,1757710246720,-6050.27,0.000269,7]
[385261537,1757710246729,-531.04384426,0.000269,30]
[385261538,1757710246738,-847.0429734,0.000269,30]
[385261539,1757710246747,-217.7145751,0.000269,30]
[385261540,1757710246756,-160.0,0.000269,30]
[385261541,1757710246765,-233.13074058,0.000269,30]
[385261542,1757710246774,-1100.0,0.00026925,2]
[385261544,1757710246783,-500.0,0.00026935,2]
[385261545,1757710246792,-500.0,0.00026947,2]
[385261546,1757710246802,-1100.0,0.00026975,2]
[385261547,1757710246811,-151.42,0.00026986,7]
[385261548,1757710246821,-500.0,0.00026987,2]
[385261549,1757710246831,-500.0,0.00026988,2]
[385261550,1757710246840,-600.0,0.00027,14]
[385261551,1757710246849,-49858.10628071,0.00027,60]
[385261552,1757710246860,-1569.13,0.00027,7]
[385261553,1757710246869,-531.04384426,0.00027,3]
[385261554,1757710246878,-73040.12,0.00027,7]
[385261555,1757710246887,-217.7145751,0.00027,3]
[385261556,1757710246896,-800.0,0.00027006,2]
[385261557,1757710246905,-800.0,0.00027012,2]
[385261558,1757710246914,-300.0,0.00027028,2]
[385261559,1757710246923,-1100.0,0.00027033,2]
[385261560,1757710246934,-151.0,0.00027038,6]
[385261561,1757710246943,-2467.17940026,0.00027064,2]
[385261562,1757710246952,-550.0,0.00027064,2]
[385261563,1757710246962,-1500.0,0.00027068,2]
[385261564,1757710246971,-1000.0,0.00027068,2]
[385261565,1757710246981,-1000.0,0.00027068,2]
[385261566,1757710246990,-154.12483647,0.00027073,2]
[385261568,1757710246999,-500.0,0.00027078,2]
[385261570,1757710247008,-800.0,0.00027079,2]
[385261571,1757710247017,-151.42,0.00027086,7]
[385261572,1757710247027,-1100.0,0.00027101,2]
[385261574,1757710247036,-500.0,0.00027103,2]
[385261576,1757710247045,-1001.3844099,0.00027123,3]
[385261578,1757710247055,-609.0,0.00027124,2]
[385261579,1757710247064,-1100.0,0.00027128,2]
[385261580,1757710247073,-1100.0,0.00027147,2]
[385261581,1757710247083,-500.0,0.00027157,2]
[385261582,1757710247092,-154.12483647,0.00027173,2]
[385261583,1757710247102,-151.42,0.00027186,7]
[385261584,1757710247111,-500.0,0.00027187,2]
[385261585,1757710247120,-500.0,0.00027191,2]
[385261586,1757710247129,-500.0,0.00027245,2]
[385261587,1757710247139,-1100.0,0.00027246,2]
[385261588,1757710247148,-154.452023,0.00027259,7]
[385261589,1757710247157,-154.12483647,0.00027273,2]
[385261590,1757710247167,-151.42,0.00027286,7]
[385261591,1757710247176,-800.0,0.00027292,2]
[385261592,1757710247185,-500.0,0.00027296,2]
[385261593,1757710247195,-800.0,0.00027318,2]
[385261594,1757710247205,-500.0,0.00027326,2]
[385261595,1757710247213,-800.0,0.00027344,2]
[385261596,1757710247223,-797.37806705,0.00027346,2]
[385261597,1757710247232,-500.0,0.00027361,2]
[385261598,1757710247241,-154.12483647,0.00027373,2]
[385261599,1757710247251,-151.42,0.00027386,7]
[385261600,1757710247260,-197.44197985,0.0002739,2]
[385261601,1757710247269,-161.37333496,0.0002739,7]
[385261602,1757710247279,-4198.23129783,0.00027394,7]
[385261603,1757710247288,-279.15225839,0.00027397,2]
[385261604,1757710247297,-300.0,0.00027397,5]
[385261605,1757710247307,-200.0,0.00027397,5]
[385261606,1757710247316,-609.0,0.00027398,2]
[385261607,1757710247325,-1584.04255427,0.00027399,120]
[385261608,1757710247334,-1700.0,0.000274,120]
[385261609,1757710247344,-500.0,0.00027404,2]
[385261610,1757710247353,-131485.68898896,0.0002744,7]
[385261611,1757710247610,-42820.511893,0.0002744,7]
[385261612,1757710248132,-184.22,0.00022388,10]
[385261613,1757710248142,-409.0,0.00023632,2]
[385261614,1757710248152,-409.0,0.00026632,2]
[385261615,1757710248161,-154.452023,0.00026772,2]
[385261616,1757710248170,-5556.31472281,0.0002744,7]
[385261617,1757710248183,-929.66343807,0.0002744,7]
[385261618,1757710248194,-3311.22879272,0.0002744,7]
[385261619,1757710248206,-372.9242503,0.0002744,7]
[385261683,1757710572699,232.102212,0.00013699,2]
[385261708,1757711015799,3099.0,0.00027,120]
[385261710,1757711190429,2000.0,0.00027397,120]
[385261713,1757711244759,963.63685011,0.00028976,120]
[385261764,1757711432177,-335.69984862,0.00019089,7]
[385261789,1757711438414,-4664.30015138,0.00019089,7]
[385261791,1757711438424,-233.13074058,0.00019786,2]
[385261793,1757711438433,-217.7145751,0.00019786,2]
[385261796,1757711438442,-160.0,0.00019793,2]
[385261799,1757711438452,-535.88900929,0.00019793,2]
[385262247,1757711443146,-466.01,0.00019595,7]
[385262410,1757711446264,-4533.99,0.00019595,7]
[385262412,1757711446274,-311.15396411,0.00019793,2]
[385262414,1757711446283,-4111.56743561,0.000199,2]
[385262416,1757711446293,-501.26335615,0.00020167,2]
[385262418,1757711446302,-500.0,0.00020167,2]
[385262420,1757711446312,-500.0,0.00020175,2]
[385262422,1757711446322,-213.94153827,0.00020175,2]
[385262424,1757711446331,-500.0,0.00020175,2]
[385262426,1757711446340,-232.102212,0.00020187,2]
[385262428,1757711446349,-300.0,0.00020297,20]
[385262430,1757711446359,-300.0,0.00020297,20]
[385262432,1757711446368,-300.0,0.00020297,20]
[385262434,1757711446378,-300.0,0.00020297,20]
[385262436,1757711446387,-300.0,0.00020297,20]
[385262438,1757711446396,-300.0,0.00020297,20]
[385262440,1757711446405,-300.0,0.00020297,20]
[385262442,1757711446415,-300.0,0.00020297,20]
[385262444,1757711446424,-300.0,0.00020297,20]
[385262446,1757711446433,-300.0,0.00020297,20]
[385262448,1757711446443,-300.0,0.00020297,20]
[385262450,1757711446452,-300.0,0.00020297,20]
[385262452,1757711446461,-300.0,0.00020297,20]
[385262454,1757711446471,-300.0,0.00020297,20]
[385262456,1757711446480,-300.0,0.00020297,20]
[385262458,1757711446489,-600.0,0.00020702,20]
[385262460,1757711446498,-4111.56743555,0.00021149,2]
[385262462,1757711446508,-4111.56743555,0.00022398,2]
[385262464,1757711446517,-720.0,0.00022772,20]
[385262466,1757711446526,-4111.56743555,0.00023647,2]
[385262468,1757711446535,-299.62982982,0.00024126,2]
[385262470,1757711446545,-200.0,0.00024658,15]
[385262472,1757711446554,-157.41,0.000248,8]
[385262474,1757711446564,-151.21105398,0.000248,2]
[385262476,1757711446573,-250.0,0.000248,10]
[385262478,1757711446582,-4111.56743555,0.00024896,2]
[385262480,1757711446591,-329.187627,0.000249,10]
[385262482,1757711446601,-864.0,0.00025049,20]
[385262484,1757711446610,-157.670519,0.00025274,2]
[385262486,1757711446619,-168.0,0.00025279,2]
[385262488,1757711446628,-168.0,0.00025535,2]
[385262490,1757711446638,-500.0,0.00025604,9]
[385262493,1757711446650,-398.0,0.0002564,13]
[385262494,1757711446660,-151.21105398,0.00025819,2]
[385262497,1757711446669,-318.38766947,0.00025824,2]
[385262499,1757711446678,-1152.464775,0.0002598,5]
[385262501,1757711446688,-609.0,0.0002598,2]
[385262503,1757711446697,-157.0,0.0002598,5]
[385262504,1757711446707,-1000.0,0.00026,5]
[385262506,1757711446716,-1000.0,0.00026,5]
[385262508,1757711446725,-500.0,0.00026,9]
[385262511,1757711446735,-157.670519,0.00026081,4]
[385262513,1757711446744,-157.670519,0.00026145,4]
[385262514,1757711446753,-4111.56743555,0.00026145,4]
[385262517,1757711446763,-500.0,0.00026167,2]
[385262519,1757711446772,-609.0,0.00026254,2]
[385262521,1757711446782,-157.0,0.00026254,5]
[385262523,1757711446791,-500.0,0.00026458,2]
[385262525,1757711446800,-2072.76,0.00026478,2]
[385262527,1757711446810,-609.0,0.00026528,2]
[385262528,1757711446819,-157.0,0.00026528,5]
[385262530,1757711446828,-800.0,0.00026665,2]
[385262532,1757711446838,-800.0,0.00026674,2]
[385262534,1757711446847,-232.102212,0.00026676,2]
[385262536,1757711446856,-500.0,0.00026707,2]
[385262538,1757711446866,-500.0,0.00026711,2]
[385262540,1757711446875,-500.0,0.00026746,2]
[385262542,1757711446884,-500.0,0.00026754,2]
[385262544,1757711446893,-500.0,0.00026763,2]
[385262546,1757711446902,-800.0,0.00026777,2]
[385262548,1757711446911,-609.0,0.00026802,2]
[385262550,1757711446920,-157.0,0.00026802,5]
[385262552,1757711446930,-800.0,0.00026807,2]
[385262554,1757711446942,-500.0,0.00026807,2]
[385262555,1757711446952,-151.21105398,0.00026838,2]
[385262558,1757711446962,-500.0,0.00026838,2]
[385262559,1757711446972,-891.50458413,0.0002688,2]
[385262561,1757711446984,-800.0,0.00026889,2]
[385262563,1757711446993,-800.0,0.00026901,2]
[385262565,1757711447003,-157.0,0.00026904,2]
[385262567,1757711447012,-500.0,0.00026904,2]
[385262569,1757711447021,-500.0,0.00026932,2]
[385262583,1757711447031,-500.0,0.0002695,2]
[385262585,1757711447155,-500.0,0.00026957,2]
[385262587,1757711447164,-1100.0,0.00026958,2]
[385262589,1757711447174,-531.04384426,0.00027,3]
[385262591,1757711447183,-800.0,0.00027024,2]
[385262593,1757711447193,-800.0,0.00027032,2]
[385262595,1757711447203,-1100.0,0.00027058,2]
[385262598,1757711447213,-500.0,0.00027062,2]
[385262599,1757711447223,-609.0,0.00027076,2]
[385262601,1757711447233,-225.0,0.00027076,5]
[385262603,1757711447242,-800.0,0.00027098,2]
[385262606,1757711447251,-500.0,0.00027106,2]
[385262607,1757711447261,-1001.3844099,0.00027123,3]
[385262609,1757711447270,-157.670519,0.00027162,2]
[385262611,1757711447279,-157.0,0.00027178,2]
[385262613,1757711447288,-1100.0,0.00027198,2]
[385262615,1757711447299,-800.0,0.00027198,2]
[385262617,1757711447310,-500.0,0.00027278,2]
[385262619,1757711447319,-16287.77600119,0.000273,2]
[385262622,1757711447329,-797.37806708,0.00027309,2]
[385262623,1757711447339,-293.85068442,0.00027321,2]
[385262625,1757711447348,-153.52,0.0002733,10]
[385262627,1757711447357,-154.452023,0.00027331,2]
[385262630,1757711447367,-800.0,0.00027339,2]
[385262632,1757711447376,-863.43,0.00027339,2]
[385262633,1757711447385,-9882.58030605,0.0002734,2]
[385262635,1757711447395,-609.0,0.0002735,2]
[385262637,1757711447405,-500.0,0.00027355,2]
[385262638,1757711447415,-1100.0,0.00027357,2]
[385262639,1757711447424,-4111.56743555,0.00027394,7]
[385262640,1757711447434,-168.68249284,0.00027397,2]
[385262641,1757711447443,-494.76196512,0.00027397,2]
[385262642,1757711447453,-500.0,0.00027397,2]
[385262643,1757711447463,-500.0,0.00027397,2]
[385262644,1757711447473,-170.56078086,0.00027397,2]
[385262645,1757711447483,-500.0,0.00027397,2]
[385262646,1757711447492,-500.0,0.00027397,2]
[385262647,1757711447502,-500.0,0.00027397,2]
[385262648,1757711447511,-500.0,0.00027397,2]
[385262649,1757711447521,-297.31142136,0.00027397,2]
[385262650,1757711447530,-279.15225839,0.00027397,2]
[385262651,1757711447540,-50858.86699814,0.00027398,2]
[385262652,1757711447554,-115891.58320288,0.00027398,2]
[385264251,1757711567688,207.711379,0.00013699,2]
[385264378,1757712460559,197.32581,0.00013699,2]
[385264458,1757712632305,-303.17279424,0.000189,2]
[385264461,1757712632321,-303.13033307,0.00019089,2]
[385264463,1757712632336,-450.84531568,0.00019443,2]
[385264466,1757712632347,-233.13074058,0.000198,2]
[385264468,1757712632361,-217.7145751,0.000198,2]
[385264471,1757712632376,-289.96808154,0.000199,2]
[385264475,1757712632406,-1623.99029825,0.000199,2]
[385264478,1757712632424,-1788.48694801,0.000199,2]
[385264481,1757712632440,-197.32581,0.00020187,2]
[385264486,1757712632453,-1200.0,0.00020292,2]
[385264489,1757712632468,-300.0,0.00020293,2]
[385264494,1757712632482,-300.0,0.00020293,2]
[385264497,1757712632495,-300.0,0.00020293,2]
[385264500,1757712632506,-300.0,0.00020293,2]
[385264505,1757712632521,-46018.94395925,0.00020294,2]
[385264507,1757712632538,-3981.05604075,0.00020294,2]
[385264510,1757712632553,-300.0,0.00020297,20]
[385264512,1757712632568,-300.0,0.00020297,20]
[385264513,1757712632584,-300.0,0.00020297,20]
[385264514,1757712632598,-300.0,0.00020297,20]
[385264515,1757712632609,-300.0,0.00020297,20]
[385264516,1757712632621,-300.0,0.00020297,20]
[385264517,1757712632635,-300.0,0.00020297,20]
[385264518,1757712632650,-300.0,0.00020297,20]
[385264519,1757712632660,-300.0,0.00020297,20]
[385264520,1757712632674,-300.0,0.00020297,20]
[385264521,1757712632688,-300.0,0.00020297,20]
[385264522,1757712632700,-300.0,0.00020297,20]
[385264523,1757712632711,-300.0,0.00020297,20]
[385264524,1757712632726,-300.0,0.00020297,20]
[385264525,1757712632739,-300.0,0.00020297,20]
[385264526,1757712632751,-600.0,0.00020702,20]
[385264527,1757712632763,-3702.44532751,0.00021149,2]
[385264528,1757712632776,-151.34,0.00022,2]
[385264531,1757712632789,-3702.44532751,0.00022398,2]
[385264533,1757712632802,-720.0,0.00022772,20]
[385264535,1757712632815,-151.34,0.00022873,2]
[385264537,1757712632828,-151.0,0.00023482,4]
[385264540,1757712632840,-115.53535286,0.00023647,2]
[385264583,1757712638154,-3586.90997465,0.00023647,2]
[385264584,1757712638164,-151.34,0.00023745,2]
[385264585,1757712638174,-157.411,0.00023765,4]
[385264587,1757712638183,-151.0,0.00024385,4]
[385264589,1757712638193,-151.34,0.00024618,2]
[385264591,1757712638202,-200.0,0.00024658,15]
[385264592,1757712638211,-409.0,0.00024778,2]
[385264594,1757712638221,-162.79830867,0.00024849,30]
[385264596,1757712638232,-3702.44532751,0.00024896,2]
[385264598,1757712638242,-864.0,0.00025049,20]
[385264600,1757712638252,-162.79830867,0.00025178,30]
[385264602,1757712638262,-151.0,0.00025289,5]
[385264604,1757712638271,-151.34,0.0002549,7]
[385264606,1757712638282,-162.79830867,0.00025507,30]
[385264608,1757712638292,-162.79830867,0.00025836,30]
[385264611,1757712638301,-500.0,0.00025836,30]
[385264613,1757712638310,-3702.44532751,0.00026145,4]
[385264614,1757712638320,-191.7316302,0.0002616,2]
[385264616,1757712638329,-151.0,0.00026193,6]
[385264617,1757712638339,-3055.329,0.00026356,2]
[385264618,1757712638347,-151.34,0.00026363,7]
[385264619,1757712638357,-1514.55,0.00026381,30]
[385264620,1757712638366,-757.27,0.00026381,30]
[385264621,1757712638375,-252.43,0.00026381,30]
[385264622,1757712638384,-527.62,0.00026381,30]
[385264623,1757712638393,-200.0,0.0002654,14]
[385264624,1757712638402,-197.32581,0.00026676,2]
[385264625,1757712638412,-500.0,0.00026686,2]
[385264626,1757712638421,-500.0,0.00026688,2]
[385264627,1757712638430,-500.0,0.0002672,2]
[385264628,1757712638439,-500.0,0.00026728,2]
[385264629,1757712638450,-511.81222277,0.00026744,2]
[385264630,1757712638460,-500.0,0.00026752,2]
[385264631,1757712638469,-500.0,0.00026764,2]
[385264632,1757712638479,-500.0,0.00026767,2]
[385264633,1757712638488,-500.0,0.00026772,2]
[385264634,1757712638499,-500.0,0.00026783,10]
[385264635,1757712638508,-637.90245364,0.0002684,2]
[385264636,1757712638517,-500.0,0.00026854,2]
[385264637,1757712638532,-500.0,0.00026875,2]
[385264638,1757712638541,-900.0,0.00026881,2]
[385264639,1757712638551,-767.61,0.00026882,10]
[385264640,1757712638560,-900.0,0.00026892,2]
[385264641,1757712638569,-500.0,0.00026895,10]
[385264642,1757712638578,-500.0,0.00026919,2]